bitfinex/quotes_ETHUSD_20260113
["timestamp","ask_amount","ask_price","bid_price","bid_amount"]
[1768321224017,0.002,3177.4,3176.5,2.16874421]
[1768321224328,0.002,3177.4,3176.6,3.14801989]
[1768321224534,0.002,3177.4,3176.7,0.31480199]
[1768321225856,1.92517624,3177.4,3175.8,1.92174421]
[1768321226097,1.92517624,3177.4,3176.2,3.14834569]
[1768321226302,1.92517624,3177.4,3176.0,3.34078647]
[1768321226303,6.29465268,3177.3,3176.1,6.29703094]
[1768321226502,2.17017624,3177.2,3176.1,6.29703094]
[1768321226668,2.17017624,3177.2,3176.1,6.97065148]
[1768321226669,0.84648289,3177.1,3176.1,6.97065148]
[1768321227007,2.76965913,3177.1,3176.1,6.97065148]
[1768321227506,0.247,3177.0,3176.1,6.97065148]
[1768321227688,2.76965913,3177.1,3176.1,6.97065148]
[1768321227689,2.17017624,3177.1,3176.1,6.97065148]
[1768321227866,0.247,3177.1,3176.1,6.97065148]
[1768321228194,0.247,3177.1,3176.2,0.90845701]
[1768321228396,3.39458134,3177.1,3176.3,3.14831722]
[1768321229096,1.92317624,3177.0,3176.2,3.1483786]
[1768321230075,1.92317624,3177.0,3176.2,6.29679494]
[1768321230588,1.92317624,3177.0,3176.1,6.29703094]
[1768321230797,0.247,3177.0,3176.1,7.64581995]
[1768321231012,0.247,3177.1,3176.1,7.64581995]
[1768321231375,0.002,3177.4,3176.1,12.96307963]
[1768321231573,0.002,3177.4,3176.2,1.92174421]
[1768321232484,0.002,3177.4,3176.4,6.2964362]
[1768321232689,1.92517624,3177.4,3176.5,0.65434362]
[1768321234694,1.92517624,3177.4,3176.6,6.29603978]
[1768321234891,0.002,3176.9,3176.6,6.29603978]
[1768321235614,2.0177098,3177.3,3176.6,3.14801989]
[1768321235975,2.0177098,3177.3,3176.5,6.95155073]
[1768321236212,2.0177098,3177.3,3176.6,0.69515507]
[1768321236895,2.0177098,3177.3,3176.7,3.14792079]
[1768321237696,2.2667098,3177.6,3176.7,6.29584158]
[1768321238036,2.2647098,3177.5,3176.7,6.29584158]
[1768321238515,2.0177098,3177.5,3176.7,6.29584158]
[1768321238711,0.002,3177.6,3176.7,6.29584158]
[1768321238712,0.249,3177.6,3176.8,0.69909967]
[1768321239311,0.249,3177.6,3176.9,3.14772262]
[1768321239520,0.002,3177.6,3176.9,6.29544524]
[1768321239671,3.14669115,3178.0,3176.9,6.29544524]
[1768321239877,5.16433919,3178.1,3176.9,6.29544524]
[1768321240108,2.0177098,3178.4,3177.1,1.9647509]
[1768321240273,2.2647098,3178.4,3177.1,1.9647509]
[1768321240710,0.002,3178.5,3177.1,1.9647509]
[1768321241052,3.14814271,3178.5,3177.1,1.9647509]
[1768321241213,3.14814271,3178.5,3177.4,6.29445458]
[1768321241214,0.002,3178.5,3177.4,6.29445458]
[1768321241385,0.002,3178.5,3177.4,11.65343277]
[1768321242089,0.247,3178.4,3177.2,0.32001602]
[1768321242276,2.0177098,3178.3,3176.7,5.35961777]
[1768321242477,2.0177098,3178.3,3177.3,3.14728749]
[1768321242690,1.76870981,3178.3,3177.3,3.14728749]
[1768321242889,1.76870981,3178.3,3177.3,6.29461383]
[1768321243414,3.39328898,3178.4,3177.2,1.9647509]
[1768321244214,3.14819729,3178.5,3177.2,2.2117509]
[1768321245216,0.002,3178.5,3177.4,1.9647509]
[1768321246901,3.14560265,3179.1,3177.9,1.9647509]
[1768321247099,0.2478016,3179.2,3178.0,2.16122599]
[1768321247325,0.0008016,3179.2,3178.1,8.25781908]
[1768321247718,0.0008016,3179.2,3178.2,1.9647509]
[1768321248205,0.0008016,3179.2,3178.1,6.54006818]
[1768321248395,0.002,3178.2,3178.1,3.39353409]
[1768321248725,0.0008016,3179.2,3178.1,4.06719897]
[1768321248925,0.002,3178.5,3178.2,1.9647509]
[1768321249130,0.0008016,3179.2,3178.2,1.9647509]
[1768321249293,0.0008016,3179.2,3178.3,6.29267218]
[1768321250125,0.0008016,3179.2,3178.4,1.9647509]
[1768321250311,0.0008016,3179.2,3178.5,1.14037592]
[1768321251535,0.0008016,3179.2,3178.6,6.29207826]
[1768321251734,0.0008016,3179.2,3178.7,1.9647509]
[1768321251900,0.002,3179.6,3178.7,1.9647509]
[1768321252104,0.002,3179.8,3178.9,1.9647509]
[1768321252319,0.002,3179.8,3179.0,2.16122599]
[1768321253346,0.002,3179.8,3179.1,6.29108866]
[1768321253511,3.14452222,3180.2,3179.2,1.9647509]
[1768321253712,0.247,3180.4,3179.2,1.9647509]
[1768321255347,2.0177098,3180.2,3179.0,0.19647509]
[1768321255560,6.2887149,3180.3,3179.1,3.14553588]
[1768321255561,2.0177098,3180.0,3179.1,3.14553588]
[1768321255851,2.0177098,3180.0,3179.0,0.19647509]
[1768321255852,2.0177098,3180.0,3179.0,3.34211635]
[1768321256075,2.0177098,3180.0,3179.2,3.14544001]
[1768321256240,2.0177098,3180.0,3179.1,3.14547651]
[1768321256424,2.0177098,3180.0,3179.2,3.14540977]
[1768321256425,2.30254503,3180.0,3179.2,3.14540977]
[1768321256831,2.0177098,3180.5,3179.2,6.29085516]
[1768321257014,3.14414135,3180.6,3179.3,1.9647509]
[1768321257217,3.14414135,3180.6,3179.4,0.246]
[1768321257530,3.14414135,3180.6,3179.5,6.2902972]
[1768321257711,3.48345549,3180.6,3179.5,9.10515291]
[1768321258141,0.249,3180.7,3179.5,9.10515291]
[1768321258142,0.249,3180.7,3179.6,1.9647509]
[1768321258322,8.55473223,3180.7,3179.5,3.99525341]
[1768321258511,2.0177098,3180.6,3179.5,7.14040201]
[1768321258718,2.0177098,3180.6,3179.5,3.99525341]
[1768321258917,2.0177098,3180.6,3179.5,7.14040201]
[1768321259234,2.87318302,3180.6,3179.5,3.99525341]
[1768321259818,6.01732699,3180.6,3179.5,7.14040201]
[1768321260150,7.14376116,3180.6,3179.5,7.14040201]
[1768321260338,7.14376116,3180.6,3179.5,3.99525341]
[1768321261147,3.99961719,3180.6,3179.5,7.14040201]
[1768321261340,0.85547322,3180.6,3179.6,0.7386402]
[1768321261541,3.39301889,3180.7,3179.6,0.7386402]
[1768321261718,0.002,3180.2,3179.7,3.14495078]
[1768321262121,0.002,3180.2,3179.6,3.88365435]
[1768321263060,0.002,3180.2,3179.6,7.02870404]
[1768321263946,0.002,3180.2,3179.7,1.9647509]
[1768321264148,0.002,3180.2,3179.8,0.89934549]
[1768321264553,0.002,3180.2,3179.7,0.246]
[1768321265753,0.002,3180.2,3179.8,6.28970374]
[1768321266525,1e-08,3180.5,3179.8,8.36666207]
[1768321267625,1e-08,3180.5,3179.8,11.51151394]
[1768321267820,1e-08,3180.5,3179.8,8.36666207]
[1768321268054,2.01832082,3180.5,3179.6,3.14499482]
[1768321268254,2.01832082,3180.5,3179.7,3.14487528]
[1768321268560,2.01832081,3180.3,3178.1,2.07695833]
[1768321268865,2.01832081,3180.2,3178.8,3.14580548]
[1768321269044,2.01832081,3180.2,3178.4,3.14621188]
[1768321269239,6.30411237,3180.3,3178.5,0.31462119]
[1768321269240,2.01832081,3180.0,3178.5,0.31462119]
[1768321269566,2.01832081,3180.0,3178.6,3.14603666]
[1768321269747,2.01832081,3180.0,3178.7,3.1459013]
[1768321269959,2.01832081,3179.8,3178.6,3.14603913]
[1768321270163,2.26532081,3179.8,3178.6,3.14603913]
[1768321270677,2.26532081,3179.8,3178.5,3.39211406]
[1768321270678,6.30411237,3178.7,3177.5,0.000802]
[1768321270835,0.85548268,3179.7,3177.5,0.000802]
[1768321270836,0.86593546,3178.2,3177.5,0.000802]
[1768321271035,0.247,3178.1,3177.5,2.07776033]
[1768321271341,0.247,3178.1,3177.5,5.22488857]
[1768321271542,0.86385904,3179.7,3177.6,2.07695833]
[1768321271757,0.247,3179.6,3177.6,2.07695833]
[1768321271967,6.2902972,3179.5,3177.8,2.07695833]
[1768321272468,9.4324578,3179.5,3178.1,2.07695833]
[1768321273345,6.2873092,3179.5,3178.1,2.07695833]
[1768321273546,6.2873092,3179.5,3178.1,2.28465416]
[1768321273547,0.65343092,3179.4,3178.1,2.28465416]
[1768321273859,6.2873092,3179.5,3178.6,2.07695833]
[1768321274241,3.1421606,3179.5,3178.6,5.22299659]
[1768321274563,6.2873092,3179.5,3178.6,2.07695833]
[1768321274766,6.2843212,3179.5,3178.6,2.07695833]
[1768321275063,6.2843212,3179.5,3178.6,2.59926648]
[1768321275482,6.2843212,3179.5,3178.4,3.14622971]
[1768321275686,6.2843212,3179.5,3178.3,0.246]
[1768321275981,3.1361846,3179.5,3178.7,2.10587939]
[1768321276140,6.2813332,3179.5,3178.7,2.10587939]
[1768321276340,3.1361846,3179.5,3178.7,2.10587939]
[1768321276575,3.1361846,3179.5,3178.8,2.10587939]
[1768321277175,3.1331966,3179.5,3178.8,1.16273527]
[1768321277493,3.39198955,3179.7,3178.8,1.16273527]
[1768321277664,3.39201601,3179.7,3178.8,2.10587939]
[1768321277995,0.247,3179.7,3178.9,3.4402903]
[1768321278282,0.247,3179.7,3178.9,8.69191192]
[1768321278436,0.247,3180.3,3179.0,2.10587939]
[1768321278636,0.05654041,3180.6,3178.9,6.83203253]
[1768321278637,3.14127011,3180.4,3179.4,2.10587939]
[1768321278937,3.14127011,3180.4,3179.4,2.31646733]
[1768321279136,3.14127011,3180.4,3179.4,2.56246733]
[1768321279375,6.28552869,3180.4,3179.4,2.56246733]
[1768321279679,3.14127011,3180.4,3179.4,2.56246733]
[1768321279848,3.13828164,3180.4,3179.4,2.56246733]
[1768321280053,3.13828164,3180.4,3179.6,2.10587939]
[1768321280236,1e-08,3180.5,3179.1,5.25141077]
[1768321280438,0.039302,3180.5,3179.2,0.246]
[1768321280644,1e-08,3180.5,3179.2,0.246]
[1768321280838,1e-08,3180.5,3179.2,3.39140986]
[1768321281054,1.13829228,3180.4,3179.3,3.14532868]
[1768321281576,1.99008255,3180.3,3179.2,0.54972892]
[1768321281751,1.99008255,3180.3,3178.7,3.14588097]
[1768321281752,2.02938701,3180.3,3178.7,3.14588097]
[1768321281956,1.99008255,3180.3,3178.8,3.1458338]
[1768321282145,1.99008255,3180.1,3178.8,3.1458338]
[1768321282346,6.53331969,3180.0,3178.8,2.10587939]
[1768321282542,3.14166561,3180.0,3178.8,2.10587939]
[1768321283476,3.13867714,3180.0,3179.1,2.10587939]
[1768321283663,3.14456046,3180.1,3179.1,2.10587939]
[1768321283842,0.37043979,3180.1,3179.1,2.10587939]
[1768321284038,3.39138655,3180.3,3179.1,2.10587939]
[1768321284462,1e-08,3180.5,3179.3,2.10587939]
[1768321284671,6.28521686,3180.6,3179.6,2.10587939]
[1768321284875,3.39305172,3180.7,3179.6,2.35187939]
[1768321285061,0.249,3180.7,3179.6,2.35187939]
[1768321285269,0.249,3180.7,3179.8,2.10587939]
[1768321285270,0.002,3180.7,3179.8,2.10587939]
[1768321285467,0.002,3180.9,3179.8,2.10587939]
[1768321285668,3.14262114,3181.1,3179.8,2.10587939]
[1768321285866,6.28622896,3181.1,3179.8,2.10587939]
[1768321286068,2.02676673,3181.9,3179.8,2.10587939]
[1768321286297,0.249,3181.8,3180.0,2.10587939]
[1768321286481,0.249,3181.8,3179.9,0.23410673]
[1768321286482,0.249,3181.8,3180.2,2.10587939]
[1768321286888,0.00101332,3181.7,3180.6,2.10587939]
[1768321287218,0.00101332,3181.7,3180.7,0.246]
[1768321287515,0.00101332,3181.7,3180.6,2.10587939]
[1768321287825,0.00101332,3181.7,3180.4,0.246]
[1768321287826,0.65357636,3181.6,3180.4,0.246]
[1768321288114,0.03928964,3181.5,3180.0,3.14461552]
[1768321288417,6.2865405,3181.4,3180.0,6.2892696]
[1768321288575,6.2865405,3181.4,3180.1,0.246]
[1768321288778,3.14327025,3181.4,3180.1,0.246]
[1768321288991,0.83309637,3181.3,3180.1,3.34328243]
[1768321289337,0.83010969,3181.3,3180.2,2.10587939]
[1768321289612,3.14327025,3181.4,3180.2,2.10587939]
[1768321289786,6.2865405,3181.4,3180.2,2.10587939]
[1768321290288,6.28355382,3181.4,3180.2,2.10587939]
[1768321291072,6.28355382,3181.4,3179.8,2.10587939]
[1768321291073,0.03929211,3181.3,3179.8,2.10587939]
[1768321291312,0.94661162,3181.2,3179.9,0.246]
[1768321291510,0.94661162,3181.2,3179.8,2.10587939]
[1768321291511,0.03929458,3181.1,3179.8,2.10587939]
[1768321291685,0.94661162,3181.2,3179.8,2.10587939]
[1768321291880,0.94661162,3181.2,3179.9,3.1446809]
[1768321292076,0.94661162,3181.2,3180.2,3.14443263]
[1768321292312,0.94661162,3181.2,3179.8,2.10587939]
[1768321292313,0.29955362,3181.1,3179.8,2.10587939]
[1768321292511,0.29955362,3181.1,3179.9,2.10587939]
[1768321292683,0.94661162,3181.2,3180.1,3.14451677]
[1768321293008,6.28713338,3181.1,3180.1,2.10587939]
[1768321293207,9.43070007,3181.1,3179.8,3.14483188]
[1768321293411,9.42771339,3181.1,3179.8,3.39081667]
[1768321293614,9.42771339,3181.1,3179.7,2.10587939]
[1768321293817,9.42771339,3181.1,3179.5,0.246]
[1768321293818,3.17204413,3181.0,3179.5,0.246]
[1768321294021,2.09531582,3180.9,3179.2,2.10587939]
[1768321294185,2.34231582,3180.8,3179.4,3.14518965]
[1768321294385,2.34231582,3180.8,3179.2,2.35187939]
[1768321294587,0.24401332,3180.8,3179.6,3.14496279]
[1768321294816,0.24401332,3180.8,3179.5,3.14505413]
[1768321295134,6.28792404,3180.7,3179.5,3.1451486]
[1768321295292,0.40666187,3180.6,3179.5,3.1451486]
[1768321295490,0.40666187,3180.6,3179.4,2.35187939]
[1768321295800,2.51071626,3180.6,3179.1,3.14653075]
[1768321296022,2.51071626,3180.6,3179.2,3.14541658]
[1768321296023,2.55001702,3180.6,3179.2,3.14541658]
[1768321296189,2.51071626,3180.6,3179.1,0.247]
[1768321296390,0.65058968,3180.5,3179.4,3.14524508]
[1768321296626,0.65058968,3180.5,3179.5,2.24239406]
[1768321297036,3.54780269,3180.6,3179.6,8.53249344]
[1768321297189,3.14399545,3180.7,3179.7,2.24239406]
[1768321297522,0.24401332,3180.8,3179.7,2.24239406]
[1768321297686,6.53176698,3180.8,3179.7,2.48839406]
[1768321298106,6.5287803,3180.8,3179.7,2.48839406]
[1768321298321,7.18165833,3180.8,3179.7,3.3662434]
[1768321298520,7.18165833,3180.8,3179.7,3.1202434]
[1768321298819,0.89390467,3180.8,3179.8,2.24239406]
[1768321299122,0.24102664,3180.8,3179.9,3.14475297]
[1768321299330,0.23803996,3180.8,3179.9,6.28950594]
[1768321299506,0.23803996,3180.8,3179.9,8.5319]
[1768321300387,6.52584994,3180.8,3180.0,0.001]
[1768321300599,0.03929952,3180.7,3180.0,0.001]
[1768321300803,0.002,3180.5,3180.0,0.001]
[1768321301644,0.002,3180.5,3179.4,3.14516611]
[1768321301941,0.002,3180.5,3179.3,2.24239406]
[1768321301942,0.21683406,3180.5,3179.7,3.14494151]
[1768321302145,0.002,3180.5,3179.7,3.14494151]
[1768321302922,0.002,3180.5,3179.6,3.1450161]
[1768321303144,0.002,3180.5,3179.5,5.38745792]
[1768321303145,0.002,3180.5,3179.7,3.14492418]
[1768321303309,0.002,3180.5,3179.7,2.24239406]
[1768321304114,0.002,3180.5,3179.4,2.24239406]
[1768321304344,0.002,3180.5,3179.5,0.8533087]
[1768321304641,0.002,3180.5,3179.6,2.24239406]
[1768321304839,0.002,3180.5,3179.8,2.24239406]
[1768321305361,0.002,3180.5,3179.5,3.09570276]
[1768321305556,0.002,3180.5,3179.7,3.39088689]
[1768321305859,0.002,3180.5,3179.8,3.14484183]
[1768321306362,0.002,3180.5,3179.7,3.14493813]
[1768321307061,0.002,3180.5,3179.6,3.14500768]
[1768321307362,0.002,3180.5,3179.6,3.14498423]
[1768321307561,0.002,3180.5,3179.8,2.24239406]
[1768321309449,0.002,3180.5,3180.0,2.24239406]
[1768321309768,0.002,3180.5,3180.2,2.24239406]
[1768321310459,0.247,3181.3,3180.2,2.24239406]
[1768321310628,0.247,3181.3,3180.6,2.24239406]
[1768321310829,0.247,3181.3,3180.7,0.22423941]
[1768321311131,3.39039658,3181.3,3180.7,0.22423941]
[1768321311352,3.39039658,3181.3,3180.3,2.24239406]
[1768321311756,3.39039658,3181.3,3180.4,3.14425858]
[1768321312141,0.247,3181.3,3180.4,6.28851716]
[1768321312451,3.39039732,3181.3,3180.4,6.28851716]
[1768321312654,3.39039732,3181.3,3180.4,3.14425858]
[1768321312869,3.39039732,3181.3,3180.5,0.85309847]
[1768321313162,0.247,3181.3,3180.5,0.85309847]
[1768321313728,0.247,3181.3,3180.5,3.09549253]
[1768321313935,0.247,3181.3,3180.6,6.28812172]
[1768321314176,3.39037322,3181.3,3180.6,3.14406086]
[1768321314357,0.002,3181.0,3180.7,0.62395534]
[1768321316266,0.002,3181.0,3180.3,3.14427659]
[1768321316567,0.002,3181.0,3180.4,3.14417318]
[1768321316749,0.002,3181.0,3180.5,3.14408579]
[1768321317132,0.002,3181.0,3180.4,3.14418995]
[1768321317346,0.002,3181.0,3180.5,0.5386584]
[1768321317737,0.002,3181.0,3180.4,3.1441806]
[1768321318065,0.002,3181.0,3180.2,3.14437371]
[1768321318066,0.002,3181.0,3180.2,0.246]
[1768321318271,0.002,3181.0,3180.3,3.14435745]
[1768321318436,0.002,3181.0,3180.3,6.2887149]
[1768321318637,0.002,3181.0,3180.4,2.24239406]
[1768321318970,0.002,3181.0,3180.3,6.2887149]
[1768321318971,0.002,3181.0,3180.6,2.24239406]
[1768321319160,0.002,3181.3,3180.6,2.24239406]
[1768321319362,0.247,3181.5,3180.8,2.24239406]
[1768321320362,3.39018091,3181.5,3180.8,2.24239406]
[1768321320847,6.53336182,3181.5,3180.6,3.14400182]
[1768321321187,11.7835838,3181.5,3180.5,0.8531109]
[1768321321484,2.14633194,3181.4,3180.0,3.14561479]
[1768321321655,2.14633194,3181.4,3180.0,3.14565108]
[1768321321857,2.14633194,3181.4,3180.0,0.001]
[1768321322257,9.43010718,3181.3,3180.0,3.14563794]
[1768321322459,3.14307266,3181.6,3180.1,2.24239406]
[1768321322779,6.28614532,3181.6,3180.1,2.24239406]
[1768321323149,3.14307266,3181.6,3180.1,2.24239406]
[1768321323345,6.28614532,3181.6,3180.1,2.24239406]
[1768321323576,9.42921798,3181.6,3180.1,2.24239406]
[1768321323746,9.42921798,3181.6,3180.1,3.16102916]
[1768321323747,3.0500642,3181.5,3180.1,3.16102916]
[1768321324351,6.2865405,3181.4,3180.2,6.28891264]
[1768321325961,0.247,3181.3,3180.1,3.16102916]
[1768321326275,0.247,3181.3,3180.0,0.247]
[1768321326276,0.03929334,3181.2,3180.0,0.001]
[1768321326476,11.68346294,3181.2,3180.0,0.001]
[1768321326845,2.25305933,3181.1,3180.0,0.001]
[1768321327064,2.25305933,3181.1,3180.4,0.001]
[1768321327280,1.16834629,3181.0,3180.4,0.001]
[1768321328483,6.28752868,3180.9,3180.4,0.001]
[1768321329460,2.50005933,3180.8,3180.0,0.001]
[1768321330178,2.50005933,3180.8,3179.3,3.14534645]
[1768321330382,2.25305933,3180.6,3179.3,3.14534645]
[1768321330697,2.25305933,3180.4,3179.2,2.2603097]
[1768321330895,2.25305933,3180.4,3178.7,6.29188032]
[1768321330896,2.50005933,3180.3,3178.9,2.2603097]
[1768321332460,2.50005933,3180.3,3178.7,3.39194016]
[1768321332894,8.54197197,3180.2,3178.7,8.79819002]
[1768321333095,8.54197197,3180.2,3178.8,0.246]
[1768321334079,6.28891264,3180.2,3178.9,2.2603097]
[1768321334398,6.98556283,3180.2,3179.1,0.22713097]
[1768321334696,6.98556283,3180.2,3179.1,2.48744067]
[1768321334899,6.98556283,3180.2,3179.1,5.63293788]
[1768321335487,6.98556283,3180.2,3179.1,0.22713097]
[1768321335488,12.38307848,3180.2,3179.1,0.22713097]
[1768321335665,12.38307848,3180.2,3179.1,0.001]
[1768321336801,2.31976854,3180.1,3179.1,0.001]
[1768321336975,10.13001915,3180.2,3179.1,0.001]
[1768321336976,2.31976854,3179.9,3179.1,0.001]
[1768321337175,9.43396224,3180.0,3178.6,3.14603879]
[1768321337176,2.31976854,3179.7,3178.6,3.14603879]
[1768321337396,2.31976854,3179.7,3178.5,2.42859456]
[1768321337397,2.31976854,3179.7,3178.5,5.57469803]
[1768321337571,0.25667685,3179.6,3178.5,2.98606436]
[1768321338169,0.25667685,3179.6,3178.6,3.14602715]
[1768321339271,6.2902972,3179.5,3178.6,3.14602715]
[1768321339503,6.2902972,3179.5,3178.5,2.98606436]
[1768321339699,6.2902972,3179.5,3178.5,2.42859456]
[1768321340206,6.2902972,3179.5,3178.5,5.57472962]
[1768321340372,6.2902972,3179.5,3178.5,2.42859456]
[1768321340568,6.2902972,3179.5,3178.5,5.57472708]
[1768321341110,6.2902972,3179.5,3178.3,0.246]
[1768321341272,6.2906929,3179.3,3178.9,0.001]
[1768321341819,0.65469741,3179.4,3178.9,0.001]
[1768321341820,3.79998939,3179.4,3178.9,0.001]
[1768321343205,3.14517871,3179.5,3178.9,0.001]
[1768321343784,6.29035742,3179.5,3178.9,0.001]
[1768321344075,6.32967177,3179.5,3178.3,3.39227496]
[1768321344275,8.61012596,3179.5,3178.3,3.39227496]
[1768321344477,8.61012596,3179.5,3178.4,3.14617695]
[1768321344702,8.61012596,3179.5,3178.5,4.01823637]
[1768321345382,2.31976854,3179.4,3178.1,3.14647974]
[1768321345715,2.31976854,3179.2,3177.8,0.001]
[1768321345878,2.31976854,3179.2,3177.8,2.42959456]
[1768321346414,2.31976854,3179.2,3177.9,3.14670093]
[1768321346789,2.31976854,3179.2,3178.0,3.14660646]
[1768321346986,3.52004933,3179.1,3177.8,2.42959456]
[1768321347590,11.75669838,3179.0,3177.8,2.42959456]
[1768321348001,2.31976854,3178.9,3177.8,2.42959456]
[1768321348214,0.247,3178.8,3177.8,2.42959456]
[1768321348718,0.247,3178.8,3177.9,2.42859456]
[1768321349824,6.29188032,3178.7,3177.8,0.001]
[1768321350935,9.43782048,3178.7,3177.8,0.001]
[1768321351321,11.75758902,3178.7,3177.8,0.001]
[1768321351527,2.31976854,3178.6,3177.8,0.001]
[1768321351706,2.31976854,3178.4,3177.5,0.000802]
[1768321351902,9.43841433,3178.5,3177.5,0.000802]
[1768321351903,2.31976854,3178.2,3177.5,0.000802]
[1768321352102,1.24501799,3178.3,3177.5,0.000802]
[1768321352327,3.56478653,3178.3,3177.5,0.000802]
[1768321352635,2.31976854,3178.2,3177.0,0.001]
[1768321353652,2.31976854,3178.0,3177.0,0.001]
[1768321353817,1.17593708,3177.9,3177.0,0.001]
[1768321354011,0.247,3177.8,3177.0,0.001]
[1768321354636,0.247,3177.8,3177.0,2.42959456]
[1768321354855,0.247,3177.8,3177.0,0.001]
[1768321355804,6.29386032,3177.7,3177.0,0.001]
[1768321356131,0.96876963,3177.6,3177.0,0.001]
[1768321356441,0.96876963,3177.6,3176.5,2.40346028]
[1768321356933,3.30777065,3177.6,3176.5,2.40346028]
[1768321357929,6.29425648,3177.5,3176.5,2.40346028]
[1768321358137,9.44138472,3177.5,3176.5,2.40346028]
[1768321358333,1.27491554,3177.4,3176.5,2.40346028]
[1768321358532,1.27491554,3177.4,3176.5,0.001]
[1768321358533,2.33900102,3177.2,3176.5,0.001]
[1768321358732,2.33900102,3177.2,3175.7,2.40246028]
[1768321359455,2.33900102,3177.2,3175.8,2.40246028]
[1768321359743,0.247,3177.1,3175.8,2.40246028]
[1768321359950,6.29465268,3177.3,3176.0,2.40246028]
[1768321360117,0.247,3177.0,3176.0,2.40246028]
[1768321361817,0.247,3177.0,3175.8,2.64270631]
[1768321362050,0.247,3176.9,3175.8,2.64270631]
[1768321362317,0.247,3176.9,3175.8,5.791517]
[1768321362548,0.247,3176.9,3175.9,0.5791517]
[1768321363532,2.58600102,3176.9,3175.8,0.24024603]
[1768321363734,2.58600102,3176.9,3175.6,3.14898347]
[1768321363975,2.58600102,3176.9,3175.5,2.40246028]
[1768321364150,2.33900102,3176.7,3175.5,2.40246028]
[1768321364953,2.33900102,3176.7,3175.1,2.40246028]
[1768321366847,2.33900102,3176.5,3175.1,5.55188152]
[1768321367051,2.33900102,3176.3,3175.1,6.42202809]
[1768321367249,2.33900102,3176.3,3175.4,0.001]
[1768321368961,2.33900102,3176.1,3175.4,0.001]
[1768321369468,2.33900102,3176.1,3174.8,5.55217695]
[1768321369469,2.33900102,3176.1,3174.8,5.55223318]
[1768321369668,2.33900102,3176.1,3174.8,2.40246028]
[1768321369874,1.178425,3176.0,3174.8,2.95770384]
[1768321370171,0.247,3175.9,3174.8,2.95770384]
[1768321370543,1.178425,3176.0,3175.2,2.40246028]
[1768321370745,0.247,3175.8,3175.2,2.40246028]
[1768321370949,0.247,3175.8,3175.2,5.55183469]
[1768321371160,3.14872762,3175.9,3175.2,5.55183469]
[1768321371358,3.14831722,3176.3,3175.3,2.40246028]
[1768321371682,3.14772262,3176.9,3175.5,2.40246028]
[1768321371841,6.29544524,3176.9,3175.5,2.40246028]
[1768321372041,0.247,3176.8,3175.5,2.40246028]
[1768321372241,3.14772262,3176.9,3175.5,2.40246028]
[1768321372442,0.247,3176.8,3175.5,2.40246028]
[1768321372643,0.247,3176.8,3175.7,2.40246028]
[1768321372974,6.54244524,3176.9,3175.9,2.40246028]
[1768321373175,3.14938958,3177.3,3175.9,2.40246028]
[1768321373176,0.002,3177.3,3175.9,2.40246028]
[1768321373381,3.3944254,3177.2,3175.9,2.40246028]
[1768321373680,6.54193801,3177.2,3175.9,2.40246028]
[1768321373878,0.96912909,3177.1,3176.0,2.40246028]
[1768321374876,6.29524708,3177.0,3176.1,3.14851547]
[1768321375044,3.14756501,3177.1,3176.2,2.40246028]
[1768321375245,0.002,3177.3,3176.2,2.40246028]
[1768321375246,3.14935785,3177.3,3176.2,2.40246028]
[1768321375577,0.247,3177.2,3176.4,2.40246028]
[1768321375979,0.002,3177.3,3176.4,2.40246028]
[1768321377000,0.002,3177.3,3176.6,2.40246028]
[1768321379288,0.002,3177.3,3176.6,5.55045422]
[1768321379599,0.002,3177.3,3176.7,0.55504542]
[1768321379962,0.002,3177.3,3176.7,2.9575057]
[1768321380909,1e-08,3177.6,3177.0,2.40246028]
[1768321381232,3.39340777,3178.3,3177.5,2.40246028]
[1768321381405,0.247,3178.3,3177.5,5.78980366]
[1768321381569,0.247,3178.3,3177.6,2.40246028]
[1768321381769,0.247,3178.3,3177.3,2.40246028]
[1768321381770,3.39336052,3178.3,3177.3,2.40246028]
[1768321382009,0.247,3178.2,3177.3,2.40246028]
[1768321382195,0.247,3178.2,3177.3,5.54970482]
[1768321382398,0.247,3178.2,3177.3,5.54974363]
[1768321382569,0.9009721,3178.2,3177.3,2.40246028]
[1768321382769,0.9009721,3178.2,3177.4,3.14721256]
[1768321383113,0.9009721,3178.2,3177.5,5.54957817]
[1768321383499,0.9009721,3178.2,3177.5,2.40246028]
[1768321383677,0.247,3178.3,3177.5,2.40246028]
[1768321383876,3.14812125,3178.6,3177.5,2.40246028]
[1768321383877,0.002,3178.6,3177.5,2.40246028]
[1768321384072,0.247,3178.5,3177.5,2.40246028]
[1768321385392,0.247,3178.5,3177.7,2.45988904]
[1768321385705,0.002,3178.6,3177.7,2.45988904]
[1768321385878,0.002,3178.6,3177.9,2.45988904]
[1768321386377,3.14806237,3178.6,3177.9,2.45988904]
[1768321386905,0.002,3178.6,3177.9,2.45988904]
[1768321388009,0.002,3178.6,3178.0,3.1466331]
[1768321388503,0.002,3178.6,3177.9,5.60658107]
[1768321389404,0.002,3178.6,3178.0,2.45988904]
[1768321390076,0.63136824,3178.6,3177.7,2.45988904]
[1768321390406,0.03932672,3178.5,3177.5,5.60700491]
[1768321390808,0.63136824,3178.6,3177.5,5.60700491]
[1768321391000,0.03932672,3178.5,3177.5,5.60700491]
[1768321391339,0.03932672,3178.5,3177.7,3.14690977]
[1768321391675,0.03932672,3178.5,3177.5,2.45988904]
[1768321392010,3.1462371,3178.4,3177.6,3.14699452]
[1768321392193,0.0393292,3178.3,3177.6,8.75391276]
[1768321392378,3.52793031,3178.4,3177.6,8.75391276]
[1768321392707,0.38169321,3178.4,3177.6,8.75391276]
[1768321393308,0.38169321,3178.4,3177.7,2.45988904]
[1768321393511,0.002,3178.6,3177.7,2.45988904]
[1768321393678,3.14804456,3178.6,3177.7,2.45988904]
[1768321394008,3.14808347,3178.6,3177.9,2.45988904]
[1768321394584,0.002,3178.3,3177.9,2.45988904]
[1768321395188,0.002,3178.3,3177.6,5.60684603]
[1768321395393,0.002,3178.3,3177.5,3.14708614]
[1768321395601,0.002,3178.3,3177.7,3.14689532]
[1768321395822,0.002,3178.3,3177.6,3.14698662]
[1768321396022,0.002,3178.3,3177.4,6.29443462]
[1768321397296,0.002,3178.3,3177.4,8.81750935]
[1768321398427,0.002,3178.3,3177.5,2.52307473]
[1768321399127,0.002,3178.3,3177.4,2.52307473]
[1768321399699,0.002,3178.3,3177.5,2.52307473]
[1768321400411,0.002,3178.3,3177.7,2.52307473]